bitfinex/quotes_SOLUSD_20220307
["timestamp","ask_amount","ask_price","bid_price","bid_amount"]
[1646668682001,42.45169456,84.879,84.84,17.6799]
[1646668682200,42.45169456,84.879,84.841,0.25]
[1646668682900,24.9862,84.888,84.841,0.25]
[1646668683101,5.891,84.887,84.85,17.678]
[1646668683302,5.891,84.887,84.851,0.25]
[1646668683501,24.9862,84.888,84.851,0.25]
[1646668683900,36.221463,84.887,84.851,0.25]
[1646668684300,36.221463,84.887,84.84,17.6785]
[1646668684505,36.221463,84.887,84.841,0.25]
[1646668685900,5.891,84.886,84.841,0.25]
[1646668687604,5.891,84.886,84.833,6.0]
[1646668687805,5.891,84.886,84.832,24.9038]
[1646668688505,5.891,84.886,84.833,39.06529885]
[1646668688906,5.891,84.886,84.84,17.68]
[1646668689107,5.891,84.886,84.841,0.25]
[1646668689909,5.891,84.886,84.85,17.6779]
[1646668690114,1.58058321,84.902,84.841,122.95]
[1646668690115,1.58058321,84.902,84.852,70.06]
[1646668690309,25.76388321,84.917,84.853,6.25]
[1646668690509,30.1833,84.917,84.854,22.8867]
[1646668690710,30.1833,84.917,84.855,6.25]
[1646668690909,36.82683216,84.916,84.855,6.25]
[1646668691108,6.0,84.915,84.855,6.25]
[1646668691309,6.0,84.915,84.86,17.6695]
[1646668691510,6.0,84.915,84.861,31.22417]
[1646668691708,6.0,84.915,84.862,0.25]
[1646668691911,6.0,84.915,84.862,6.25]
[1646668692413,6.0,84.915,84.87,17.6721]
[1646668692611,6.0,84.915,84.871,6.25]
[1646668693230,6.0,84.915,84.871,0.25]
[1646668694031,36.82683216,84.916,84.871,0.25]
[1646668695234,6.0,84.915,84.871,0.25]
[1646668697237,6.0,84.915,84.88,17.6713]
[1646668697436,1.58058321,84.929,84.883,0.27041631]
[1646668697634,1.58058321,84.93,84.883,30.27341631]
[1646668697838,1.58058321,84.93,84.883,30.003]
[1646668698035,1.58058321,84.931,84.883,30.003]
[1646668698234,5.888,84.93,84.883,30.003]
[1646668698635,37.54612448,84.931,84.89,17.6652]
[1646668698836,37.54612448,84.931,84.891,6.25]
[1646668702838,37.54612448,84.931,84.864,5.888]
[1646668703038,8.97513526,84.93,84.865,24.4722]
[1646668703238,1.58058321,84.924,84.865,24.4722]
[1646668703438,1.58058321,84.919,84.845,5.889]
[1646668703637,1.58058321,84.915,84.823,30.3622]
[1646668703837,7.72158321,84.914,84.831,70.06]
[1646668704038,6.0,84.913,84.841,70.06]
[1646668704237,1.58058321,84.922,84.843,70.06]
[1646668704440,1.58058321,84.928,84.845,70.06]
[1646668704639,0.25,84.927,84.847,70.06]
[1646668704841,5.89,84.926,84.851,70.06]
[1646668705044,5.89,84.926,84.85,116.7]
[1646668705045,5.89,84.928,84.861,186.76]
[1646668705242,1.58058321,84.946,84.863,186.76]
[1646668705541,1.58058321,84.953,84.865,187.0400303]
[1646668705742,3.16611048,84.977,84.868,0.38098544]
[1646668705743,1.58058321,84.96,84.868,0.38098544]
[1646668705941,1.58058321,84.964,84.882,0.46354721]
[1646668706142,1.58058321,84.965,84.901,186.76]
[1646668706341,1.58058321,84.973,84.904,6.4079647]
[1646668706542,1.58058321,84.98,84.906,0.46354721]
[1646668706741,1.58058321,84.984,84.909,0.46354721]
[1646668707042,1.58058321,84.992,84.912,186.76]
[1646668707241,41.2172769,84.993,84.921,186.76]
[1646668707545,166.13945817,85.027,84.92,17.6534]
[1646668707546,1.58058321,84.994,84.939,70.06]
[1646668707741,1.58058321,84.994,84.938,116.7]
[1646668707742,1.58058321,85.009,84.951,70.06]
[1646668707942,1.58058321,85.012,84.952,100.5807]
[1646668708139,1.58058321,85.012,84.953,5.883]
[1646668708342,1.58058321,85.012,84.961,186.76]
[1646668708545,34.12739212,85.017,84.962,76.31]
[1646668708744,6.0,85.016,84.962,76.31]
[1646668708942,100.0,85.033,84.963,23.739]
[1646668709142,100.0,85.033,84.964,6.25]
[1646668709341,5.882,85.032,84.965,75.942]
[1646668709542,5.882,85.032,84.971,186.76]
[1646668709741,37.13173461,85.031,84.973,70.06]
[1646668709941,37.13173461,85.031,84.975,70.06]
[1646668710149,37.13173461,85.031,84.977,70.06]
[1646668710344,5.882,85.053,84.979,70.06]
[1646668710544,6.25,85.052,84.981,70.06]
[1646668710743,5.881,85.051,84.982,82.191]
[1646668710943,5.881,85.051,84.982,12.131]
[1646668711146,5.881,85.051,84.982,6.131]
[1646668711344,38.77026407,85.05,84.982,6.131]
[1646668711844,6.0,85.049,84.982,6.131]
[1646668712144,0.25,85.048,84.982,6.131]
[1646668712748,0.25,85.048,84.982,0.25]
[1646668712946,0.25,85.048,84.973,6.25]
[1646668713147,0.25,85.048,84.95,116.84253146]
[1646668713148,16.93,85.04,84.93,34.1945]
[1646668713349,122.95,85.039,84.943,6.0]
[1646668713547,116.7,85.038,84.944,5.882]
[1646668713747,17.6599,85.02,84.945,6.0]
[1646668713949,54.15920748,85.019,84.946,34.92930162]
[1646668714150,54.15920748,85.019,84.947,6.0]
[1646668714348,48.27620748,85.019,84.948,5.883]
[1646668714548,48.27620748,85.019,84.949,0.25]
[1646668714750,5.883,85.018,84.949,0.25]
[1646668714949,6.25,85.017,84.95,17.6553]
[1646668715149,5.883,85.016,84.951,6.25]
[1646668715354,17.6576,85.01,84.951,6.25]
[1646668715551,6.133,85.009,84.951,6.25]
[1646668715752,6.133,85.009,84.951,0.25]
[1646668716252,6.133,85.009,84.944,70.31]
[1646668716451,6.0,85.008,84.945,5.883]
[1646668716651,6.133,85.007,84.946,0.25]
[1646668717055,6.0,85.006,84.946,0.25]
[1646668717252,6.134,85.005,84.946,0.25]
[1646668717454,6.0,85.004,84.946,0.25]
[1646668717653,6.134,85.003,84.946,0.25]
[1646668717856,6.134,85.003,84.933,6.0]
[1646668717857,6.134,85.003,84.934,6.134]
[1646668718054,6.0,85.002,84.935,6.0]
[1646668718254,6.134,85.001,84.94,17.6583]
[1646668718459,6.134,85.001,84.941,6.25]
[1646668719257,6.0,85.0,84.942,6.0]
[1646668719457,6.134,84.999,84.943,0.25]
[1646668719654,5.884,84.999,84.941,0.25]
[1646668719855,0.25,84.998,84.941,0.25]
[1646668720655,5.884,84.997,84.951,27.28240031]
[1646668720854,5.884,85.004,84.952,0.25]
[1646668721056,5.883,85.023,84.952,76.31]
[1646668721256,6.0,85.022,84.952,76.31]
[1646668721454,6.0,85.023,84.952,76.31]
[1646668721654,17.6531,85.03,84.96,17.6514]
[1646668721855,5.882,85.023,84.961,0.25]
[1646668722254,38.51957041,85.022,84.961,0.25]
[1646668722454,5.882,85.021,84.94,24.4707]
[1646668722754,5.882,85.021,84.927,25.54909428]
[1646668722755,134.6052,85.02,84.941,6.0]
[1646668722954,116.7,85.018,84.941,6.0]
[1646668723158,11.883,85.019,84.941,6.0]
[1646668723159,116.7,85.016,84.941,6.0]
[1646668723354,100.0,85.005,84.921,23.6004]
[1646668723554,16.93,85.0,84.921,23.6004]
[1646668723757,17.6619,84.99,84.921,23.6004]
[1646668724058,48.55983076,84.988,84.921,23.6004]
[1646668724255,12.135,84.987,84.922,0.25]
[1646668724454,6.135,84.987,84.922,0.25]
[1646668724656,6.135,84.987,84.923,5.885]
[1646668724854,6.0,84.986,84.924,6.25]
[1646668725055,6.135,84.985,84.925,5.885]
[1646668725255,6.0,84.984,84.93,17.6605]
[1646668725456,6.135,84.983,84.931,12.135]
[1646668725657,6.0,84.982,84.931,11.885]
[1646668725855,6.0,84.982,84.932,0.25]
[1646668726057,48.55983076,84.988,84.934,186.76]
[1646668726357,3.16611048,85.023,84.933,5.885]
[1646668726358,6.0,84.987,84.941,186.76]
[1646668726557,6.0,85.022,84.943,70.06]
[1646668726756,6.0,85.022,84.945,70.06]
[1646668726956,6.0,85.022,84.947,70.06]
[1646668727156,54.50621448,85.021,84.949,70.06]
[1646668727356,23.905,85.02,84.95,6.25]
[1646668727556,5.883,85.019,84.95,0.25]
[1646668727756,6.25,85.018,84.95,0.25]
[1646668727956,5.883,85.017,84.95,0.25]
[1646668728160,6.25,85.016,84.95,0.25]
[1646668728357,5.883,85.015,84.947,0.25]
[1646668728557,6.25,85.014,84.948,5.883]
[1646668728757,5.883,85.013,84.949,0.25]
[1646668728957,6.25,85.012,84.949,0.25]
[1646668729158,17.6572,85.01,84.949,0.25]
[1646668729358,12.133,85.009,84.949,0.25]
[1646668729761,12.133,85.009,84.945,0.25]
[1646668730158,17.6595,85.0,84.945,0.25]
[1646668730359,6.134,84.999,84.945,0.25]
[1646668730562,6.134,84.999,84.937,6.25]
[1646668730964,53.32133675,85.01,84.938,212.30909428]
[1646668731160,3.16611048,85.039,84.951,116.7]
[1646668731364,3.16611048,85.039,84.95,16.93]
[1646668731365,53.32,85.043,84.954,4.75170344]
[1646668731561,53.32,85.043,84.956,186.76]
[1646668731763,53.32,85.043,84.971,186.76]
[1646668732061,23.6363,85.105,84.974,4.14190394]
[1646668732062,3.16611048,85.085,84.974,4.14190394]
[1646668732261,47.8606,85.1,84.981,186.76]
[1646668732262,3.16611048,85.091,84.981,186.76]
[1646668732463,47.8606,85.1,84.98,117.82375618]
[1646668732464,5.881,85.09,84.991,186.76]
[1646668732661,5.88,85.094,84.994,4.09498853]
[1646668732861,5.88,85.096,85.002,116.7]
[1646668733063,3.27428001,85.053,85.022,116.7]
[1646668733267,5.878,85.112,85.031,70.06]
[1646668733465,5.878,85.112,85.033,0.30151363]
[1646668733661,6.3985336,85.111,85.034,70.06]
[1646668733861,5.877,85.11,85.04,186.76]
[1646668734062,34.45901296,85.118,85.043,11.08818013]
[1646668734266,15.4405645,85.117,85.044,6.25]
[1646668734467,6.39845402,85.116,85.051,70.06]
[1646668734767,11.876,85.115,85.052,76.31]
[1646668734963,11.876,85.115,85.052,0.25]
[1646668735364,5.876,85.115,85.052,0.25]
[1646668735564,17.6364,85.11,85.052,0.25]
[1646668735766,6.39813738,85.109,85.041,6.25]
[1646668736369,0.25,85.108,85.041,6.25]
[1646668736565,6.39813738,85.107,85.041,6.25]
[1646668736865,34.21499364,85.105,85.041,0.25]
[1646668737267,0.25,85.104,85.041,11.63597587]
[1646668737467,34.21499364,85.105,85.041,11.63597587]
[1646668737868,34.21499364,85.105,85.041,0.25]
[1646668738069,0.25,85.104,85.041,0.25]
[1646668738271,5.877,85.103,85.041,0.25]
[1646668738570,0.25,85.102,85.041,0.25]
[1646668738769,0.25,85.104,85.041,6.25]
[1646668739170,17.6382,85.1,85.041,6.25]
[1646668739373,0.25,85.099,85.041,6.25]
[1646668740573,0.25,85.104,85.041,6.25]
[1646668740977,34.21499364,85.105,85.041,6.25]
[1646668741279,34.21499364,85.105,85.042,70.06]
[1646668741482,34.21499364,85.105,85.043,6.25]
[1646668741678,34.21499364,85.105,85.05,17.6348]
[1646668741887,5.877,85.125,85.052,186.76]
[1646668742093,5.877,85.125,85.051,6.25]
[1646668742094,5.876,85.135,85.055,0.30265102]
[1646668742293,5.875,85.148,85.061,70.06]
[1646668742494,6.39536935,85.147,85.063,0.30265102]
[1646668742692,6.39536935,85.147,85.063,24.91875102]
[1646668742893,37.92879273,85.146,85.064,6.0]
[1646668743098,37.92879273,85.146,85.08,17.6252]
[1646668743301,6.25,85.145,85.081,6.25]
[1646668743498,6.25,85.145,85.064,6.0]
[1646668743499,122.573,85.144,85.064,6.0]
[1646668743696,122.573,85.144,85.065,0.25]
[1646668743697,116.7,85.142,85.065,0.25]
[1646668743897,116.7,85.14,85.065,0.25]
[1646668744096,116.7,85.138,85.065,0.25]
[1646668744300,17.6332,85.13,85.043,6.0]
[1646668744498,116.7,85.128,85.04,7.77]
[1646668744697,42.67600944,85.126,85.04,7.77]
[1646668744900,116.7,85.124,85.04,7.77]
[1646668745098,116.7,85.122,85.04,7.77]
[1646668745300,133.63,85.12,85.04,7.77]
[1646668745498,116.7,85.118,85.031,24.6161]
[1646668745801,40.57124174,85.105,85.032,6.0]
[1646668745997,40.57124174,85.105,85.02,17.6402]
[1646668745998,12.127,85.104,85.02,17.6402]
[1646668746198,116.7,85.103,85.01,23.8996]
[1646668746400,12.127,85.104,85.01,23.8996]
[1646668746402,116.7,85.099,85.01,23.8996]
[1646668746599,17.6432,85.08,85.01,41.5436]
[1646668746798,6.25,85.079,85.01,41.5436]
[1646668747000,6.25,85.079,85.011,0.25]
[1646668747200,44.85741616,85.078,85.011,0.25]
[1646668747500,0.25,85.077,85.011,6.25]
[1646668747701,5.878,85.076,85.011,6.25]
[1646668748600,5.878,85.076,85.02,17.642]
[1646668748801,5.878,85.076,85.021,6.25]
[1646668749400,5.878,85.076,85.022,6.0]
[1646668749601,0.25,85.179,85.021,0.25]
[1646668749602,3.16611048,85.117,85.023,0.25]
[1646668749802,3.16611048,85.126,85.022,70.06]
[1646668750005,3.16611048,85.126,85.023,6.25]
[1646668750203,5.877,85.102,85.023,6.25]
[1646668750603,35.81619542,85.101,85.03,17.6396]
[1646668750907,6.127,85.1,85.031,6.25]
[1646668751302,6.127,85.1,85.023,6.0]
[1646668751504,116.7,85.099,85.023,6.0]
[1646668751702,36.40848024,85.079,85.015,6.0]
[1646668751902,6.128,85.078,85.015,6.0]
[1646668752604,0.25,85.078,85.015,6.0]
[1646668752803,0.25,85.078,85.016,0.25]
[1646668754205,0.25,85.078,85.02,17.6419]
[1646668754405,0.25,85.078,85.021,6.25]
[1646668756408,36.40848024,85.079,85.03,17.6397]
[1646668756609,36.40848024,85.079,85.021,6.25]
[1646668756610,36.40848024,85.079,85.031,6.25]
[1646668756808,3.16611048,85.11,85.031,6.25]
[1646668757011,0.25,85.102,85.031,6.25]
[1646668757208,0.25,85.102,85.032,6.0]
[1646668757409,0.25,85.102,85.033,0.25]
[1646668757610,5.877,85.101,85.04,17.6355]
[1646668757809,5.877,85.102,85.042,70.06]
[1646668758011,3.16611048,85.124,85.05,186.76]
[1646668758211,3.16611048,85.131,85.052,186.76]
[1646668758409,3.16611048,85.146,85.055,0.28769462]
[1646668758613,3.16611048,85.149,85.062,0.28769462]
[1646668758812,12.26842359,85.153,85.08,70.06]
[1646668759111,44.28337677,85.152,85.082,70.06]
[1646668759313,44.28337677,85.152,85.083,6.25]
[1646668759512,5.873,85.151,85.083,6.25]
[1646668759711,17.8779,85.15,85.083,0.25]
[1646668759911,9.03911048,85.149,85.083,0.25]
[1646668760111,6.64433229,85.148,85.083,0.25]
[1646668760313,12.26733229,85.147,85.066,0.25]
[1646668760513,6.39433229,85.146,85.066,116.95]
[1646668760713,6.39433229,85.146,85.072,0.26627642]
[1646668760914,3.16611048,85.142,85.09,17.6269]
[1646668761116,3.16611048,85.145,85.091,6.25]
[1646668761317,3.16611048,85.151,85.091,6.25]
[1646668761713,6.39433229,85.152,85.091,0.25]
[1646668761913,6.39433229,85.152,85.1,17.6232]
[1646668762112,46.42355536,85.151,85.101,6.25]
[1646668762314,6.39433229,85.15,85.101,6.25]
[1646668762915,46.42355536,85.151,85.101,0.25]
[1646668763228,3.16611048,85.148,85.084,0.25]
[1646668763415,11.873,85.147,85.084,0.25]
[1646668763618,6.39358007,85.146,85.065,5.873]
[1646668763815,11.875,85.145,85.065,5.873]
[1646668764017,0.25,85.144,85.065,5.873]
[1646668764218,5.875,85.143,85.065,5.873]
[1646668764418,0.25,85.142,85.065,5.873]
[1646668764717,5.875,85.141,85.065,5.873]
[1646668764918,0.25,85.14,85.08,17.6291]
[1646668765117,34.46547065,85.138,85.081,6.25]
[1646668765318,34.46547065,85.138,85.082,5.873]
[1646668766122,34.46547065,85.138,85.09,17.6265]
[1646668766419,5.873,85.153,85.091,6.25]
[1646668766617,3.16611048,85.155,85.092,75.933]
[1646668766818,3.16611048,85.169,85.093,6.25]
[1646668767018,3.16611048,85.169,85.094,5.873]
[1646668767219,3.16611048,85.169,85.1,17.6257]
[1646668767419,45.59381319,85.168,85.101,12.123]
[1646668767717,6.3930899,85.167,85.101,12.123]
[1646668768138,5.873,85.166,85.12,17.6216]
[1646668768318,45.59381319,85.168,85.121,6.25]
[1646668768721,6.39275581,85.167,85.121,6.25]
[1646668769519,0.25,85.166,85.121,0.25]
[1646668769720,6.39275581,85.165,85.097,6.122]
[1646668770027,6.123,85.164,85.098,6.0]
[1646668770219,17.6256,85.16,85.096,6.0]
[1646668770419,6.64275581,85.159,85.097,5.873]
[1646668770619,6.39275581,85.158,85.098,6.0]
[1646668770919,0.25,85.157,85.099,5.873]
[1646668771119,12.26575581,85.156,85.083,5.873]
[1646668771321,37.65818592,85.154,85.083,5.873]
[1646668771519,11.873,85.153,85.09,17.6278]
[1646668771719,12.39275581,85.153,85.09,17.6278]
[1646668771919,6.0,85.153,85.09,17.6278]
[1646668772119,6.39449337,85.152,85.091,6.0]
[1646668772319,6.0,85.151,85.092,6.123]
[1646668772519,6.0,85.151,85.093,6.0]
[1646668772719,37.65818592,85.154,85.094,0.25]
[1646668772720,17.6275,85.15,85.094,0.25]
[1646668772920,6.25,85.149,85.094,0.25]
[1646668773320,5.873,85.148,85.094,0.25]
[1646668773522,6.0,85.147,85.094,0.25]
[1646668773722,5.873,85.146,85.084,6.123]
[1646668774025,6.0,85.145,85.085,6.0]
[1646668774322,5.873,85.144,85.09,17.6277]
[1646668774521,6.0,85.143,85.091,6.25]
[1646668774723,5.873,85.142,85.091,6.25]
[1646668774923,44.54552903,85.141,85.091,6.25]
[1646668775122,44.54552903,85.141,85.092,5.873]
[1646668775322,44.54552903,85.141,85.1,17.6251]
[1646668775522,44.54552903,85.141,85.101,6.25]
[1646668775722,44.54552903,85.141,85.101,0.25]
[1646668776522,44.54552903,85.141,85.091,6.0]
[1646668776724,6.123,85.14,85.084,6.0]
[1646668776923,0.25,85.14,85.085,5.873]
[1646668777123,0.25,85.14,85.086,6.0]
[1646668777323,17.8798,85.14,85.086,6.0]
[1646668777524,6.0,85.139,85.086,6.0]
[1646668777725,0.25,85.138,85.087,0.25]
[1646668777925,0.25,85.138,85.085,6.123]
[1646668778126,5.873,85.137,85.086,6.0]
[1646668778327,0.25,85.136,85.087,0.25]
[1646668778626,5.873,85.135,85.087,0.25]
[1646668779027,17.6316,85.13,85.088,5.873]
[1646668779228,0.25,85.129,85.088,5.873]
[1646668779426,0.25,85.129,85.083,6.0]
[1646668779826,0.25,85.129,85.07,17.6316]
[1646668780027,37.3610125,85.127,85.071,6.0]
[1646668780332,17.6339,85.12,85.055,51.8476]
[1646668780527,12.126,85.119,85.055,5.875]
[1646668780728,0.25,85.118,85.032,70.06]
[1646668780927,5.877,85.117,85.033,11.877]
[1646668781128,6.25,85.116,85.04,17.6384]
[1646668781327,37.97913073,85.114,85.041,6.0]
[1646668781527,6.0,85.113,85.042,5.876]
[1646668781733,6.0,85.113,85.043,6.0]
[1646668781930,6.0,85.113,85.044,6.126]
[1646668782228,5.876,85.112,85.05,17.6358]
[1646668782429,6.0,85.111,85.051,6.25]
[1646668782628,5.876,85.11,85.051,0.25]
[1646668782831,37.97913073,85.114,85.051,0.25]
[1646668783031,37.97913073,85.114,85.051,6.25]
[1646668783231,37.97913073,85.114,85.06,17.6336]
[1646668783433,37.97913073,85.114,85.052,6.0]
[1646668783434,37.97913073,85.114,85.061,12.126]
[1646668783630,37.97913073,85.114,85.061,11.876]
[1646668783832,37.97913073,85.114,85.062,0.25]
[1646668784032,37.97913073,85.114,85.063,5.876]
[1646668784235,37.97913073,85.114,85.064,6.25]
[1646668784436,5.876,85.113,85.064,6.25]
[1646668784832,17.6357,85.11,85.064,0.25]
[1646668785233,5.876,85.113,85.044,0.25]
[1646668785634,5.876,85.113,85.05,58.7709]
[1646668785833,37.97913073,85.114,85.051,6.25]
[1646668786336,37.97913073,85.114,85.07,17.6318]
[1646668786533,37.97913073,85.114,85.071,6.25]
[1646668787134,37.97913073,85.114,85.071,0.25]
[1646668787335,37.97913073,85.114,85.08,17.6297]
[1646668788036,37.97913073,85.114,85.063,5.875]
[1646668788237,37.97913073,85.114,85.064,6.0]
[1646668788837,37.97913073,85.114,85.065,0.25]
[1646668789037,17.636,85.11,85.056,0.25]
[1646668789240,5.876,85.113,85.056,0.25]
[1646668790441,0.25,85.112,85.056,0.25]
[1646668790654,5.876,85.111,85.056,0.25]
[1646668790855,6.25,85.11,85.056,0.25]
[1646668791056,5.876,85.109,85.056,0.25]
[1646668791258,6.25,85.108,85.056,0.25]
[1646668791658,5.876,85.113,85.056,0.25]
[1646668791860,5.876,85.123,85.056,9.29]
[1646668792060,0.25,85.122,85.057,6.0]
[1646668792358,0.25,85.122,85.06,17.6347]
[1646668792558,0.25,85.122,85.061,6.25]
[1646668792759,0.25,85.122,85.062,6.25]
[1646668792959,6.39444506,85.121,85.058,0.25]
[1646668793158,0.25,85.12,85.058,0.25]
[1646668793358,5.876,85.119,85.058,0.25]
[1646668793558,0.25,85.118,85.058,0.25]
[1646668793758,5.876,85.117,85.058,0.25]
[1646668793959,0.25,85.116,85.056,0.25]
[1646668794158,5.876,85.115,85.055,6.0]
[1646668794358,0.25,85.114,85.055,6.0]
[1646668794599,5.876,85.113,85.055,6.0]
[1646668794758,0.25,85.112,85.055,6.0]
[1646668794958,5.876,85.111,85.055,6.0]
[1646668795158,5.876,85.119,85.055,6.0]
[1646668795358,6.64488756,85.118,85.055,6.0]
[1646668795559,12.27088756,85.117,85.056,0.25]
[1646668795758,6.64488756,85.116,85.056,0.25]
[1646668795959,6.39488756,85.115,85.056,0.25]
[1646668796161,0.25,85.114,85.056,0.25]
[1646668796860,17.6337,85.12,85.056,0.25]
[1646668797062,6.6448197,85.119,85.056,0.25]
[1646668797260,0.25,85.119,85.06,17.6332]
[1646668797461,0.25,85.119,85.061,6.25]
[1646668797661,6.39485975,85.118,85.061,6.25]
[1646668797861,0.25,85.117,85.061,6.25]
[1646668798160,6.39485975,85.116,85.061,0.25]
[1646668798362,35.72049679,85.109,85.061,0.25]
[1646668798563,0.25,85.108,85.056,0.25]
[1646668799171,35.72049679,85.109,85.056,0.25]
[1646668800569,6.25,85.108,85.06,14.1]
[1646668800768,17.6382,85.1,85.03,116.7]
[1646668800969,6.127,85.099,85.03,116.7]
[1646668801168,6.0,85.098,85.03,116.7]
[1646668801369,6.127,85.097,85.03,116.7]
[1646668801567,47.75588524,85.095,85.026,116.7]
[1646668801769,6.127,85.094,85.028,116.7]
[1646668801967,6.0,85.093,85.028,116.7]
[1646668802170,6.128,85.092,85.033,0.25]
[1646668802367,0.25,85.092,85.033,0.25]
[1646668802567,47.75588524,85.095,85.033,0.25]
[1646668802767,6.0,85.094,85.033,0.25]
[1646668803169,47.75588524,85.095,85.033,0.25]
[1646668803367,47.75588524,85.095,85.033,6.25]
[1646668803871,2.83613526,85.119,85.033,6.25]
[1646668804071,33.77675992,85.124,85.04,17.6372]
[1646668804272,33.77675992,85.124,85.041,6.25]
[1646668804672,6.0,85.105,85.042,23.3425]
[1646668804870,34.17469573,85.104,85.043,6.25]
[1646668805670,6.0,85.103,85.043,6.25]
[1646668805870,6.0,85.103,85.05,17.6351]
[1646668806070,34.17469573,85.104,85.051,6.25]
[1646668806270,17.6381,85.1,85.042,23.3425]
[1646668806470,6.127,85.099,85.042,23.3425]
[1646668807772,6.0,85.098,85.043,6.25]
[1646668808172,5.877,85.099,85.043,6.25]
[1646668808375,6.0,85.098,85.043,6.25]
[1646668808573,5.877,85.099,85.043,6.25]
[1646668808774,6.0,85.098,85.043,6.25]
[1646668808973,17.6381,85.1,85.043,6.25]
[1646668809779,0.25,85.099,85.043,6.25]
[1646668809978,17.6432,85.09,85.043,6.25]
[1646668810176,48.88198737,85.089,85.043,0.25]
[1646668810377,48.88198737,85.089,85.022,0.25]
[1646668810577,5.877,85.089,85.022,0.25]
[1646668810777,24.7056,85.122,85.022,0.25]
[1646668810778,5.878,85.117,85.022,187.01]
[1646668810977,0.25,85.105,85.031,70.06]
[1646668811177,0.25,85.105,85.032,76.31]
[1646668811478,0.25,85.105,85.033,24.5717]
[1646668811678,5.877,85.104,85.034,6.25]
[1646668811877,0.25,85.103,85.034,6.25]
[1646668812280,5.877,85.102,85.04,17.637]
[1646668812479,6.25,85.101,85.041,6.25]
[1646668812678,0.25,85.103,85.041,6.25]
[1646668812878,0.25,85.1,85.041,6.25]
[1646668813079,0.25,85.103,85.041,6.25]
[1646668814982,0.25,85.103,85.05,17.6354]
[1646668815183,0.25,85.103,85.051,0.25]
[1646668815582,5.877,85.102,85.051,0.25]
[1646668815781,0.25,85.101,85.051,0.25]
[1646668815981,5.877,85.1,85.051,0.25]
[1646668816181,0.25,85.099,85.051,0.25]
[1646668816382,5.877,85.098,85.051,0.25]
[1646668816582,0.25,85.097,85.051,0.25]
[1646668816781,5.877,85.096,85.051,0.25]
[1646668817281,5.877,85.096,85.042,0.25]
[1646668817282,0.25,85.095,85.042,0.25]
[1646668817485,5.877,85.094,85.042,0.25]
[1646668817683,5.877,85.094,85.034,6.0]
[1646668817684,0.25,85.093,85.035,0.25]
[1646668817881,5.877,85.092,85.035,0.25]